[Event "Romanian Championship 2024"]
[Site "Eforie Nord"]
[Date "2024.03.01"]
[Round "8.15"]
[White "Daianu, Cristian-Clement"]
[Black "Sava, Robert-Gabriel"]
[Result "1/2-1/2"]
[ECO "C08"]
[WhiteElo "2201"]
[BlackElo "2053"]
[Annotator "RC"]
[PlyCount "52"]
[EventDate "2024.02.24"]
[EventType "swiss"]
[EventCountry "ROU"]
[SourceTitle "playchess.com"]
[Source "ChessBase"]
[SourceQuality "1"]
[TimeControl "40/5400+30:900+30"]

1. e4 {[%emt 0:02:01]} e6 {[%emt 0:00:04]} 2. d4 {[%emt 0:00:11]} d5 {[%emt 0:00:08]} 3. Nd2 {[%emt 0:00:10]} c5 {[%emt 0:00:08]} 4. Ngf3 {[%emt 0:00:12]} Nc6 {[%emt 0:00:13]} 5. exd5 {[%emt 0:03:39]} exd5 {[%emt 0:00:07]} 6. Be2 {[%emt 0:01:50]} c4 {[%emt 0:02:24]} 7. O-O {[%emt 0:04:17]} Nf6 {[%emt 0:00:17]} 8. Re1 {[%emt 0:00:37]} Be7 {[%emt 0:01:25]} 9. c3 {[%emt 0:00:19]} O-O {[%emt 0:00:52]} 10. Nf1 {[%emt 0:03:56]} b5 {[%emt 0:01:14]} 11. Ng3 {[%emt 0:06:02]} Be6 {[%emt 0:01:02]} 12. Ng5 {[%emt 0:07:32]} Bd7 {[%emt 0:00:13]} 13. Bf4 {[%emt 0:06:46]} h6 {[%emt 0:02:30]} 14. Nf3 {[%emt 0:02:10]} Be6 {[%emt 0:00:20]} 15. Qc2 {[%emt 0:03:15]} Re8 {[%emt 0:02:48]} 16. Rad1 {[%emt 0:04:49]} b4 {[%emt 0:05:05]} 17. Ne5 {[%emt 0:01:27]} Qb6 {[%emt 0:04:31]} 18. Bf3 {[%emt 0:05:58]} Na5 {[%emt 0:07:08]} 19. Qd2 {[%emt 0:11:22]} Bf8 {[%emt 0:01:46]} 20. Nh5 {[%emt 0:02:18]} Nxh5 {[%emt 0:02:01]} 21. Bxh5 {[%emt 0:01:20]} Nc6 {[%emt 0:05:55]} 22. Re3 {[%emt 0:13:06]} Nxe5 {[%emt 0:04:57]} 23. Bxe5 {[%emt 0:01:17]} bxc3 {[%emt 0:00:53]} 24. bxc3 {[%emt 0:00:15]} Bf5 {[%emt 0:01:21]} 25. Rde1 {[%emt 0:08:24]} Bg6 {[%emt 0:09:42]} 26. Bf3 {[%emt 0:00:40]} Qc6 {[%emt 0:00:19]} 1/2-1/2

[Event "Romanian Championship 2024"]
[Site "Eforie Nord"]
[Date "2024.03.01"]
[Round "8.16"]
[White "Prelipcean, Eric-Matei"]
[Black "Melinte, Rares-Andrei"]
[Result "1-0"]
[ECO "A48"]
[WhiteElo "2103"]
[BlackElo "1989"]
[Annotator "NA RC"]
[PlyCount "85"]
[EventDate "2024.02.24"]
[EventType "swiss"]
[EventCountry "ROU"]
[SourceTitle "playchess.com"]
[Source "ChessBase"]
[SourceQuality "1"]
[TimeControl "40/5400+30:900+30"]

1. d4 {[%emt 0:00:02]} Nf6 {[%emt 0:00:06]} 2. Nf3 {[%emt 0:00:05]} g6 {[%emt 0:00:14]} 3. Bg5 {[%emt 0:00:07]} Bg7 {[%emt 0:00:19]} 4. Nbd2 {[%emt 0:00:12]} O-O {[%emt 0:00:32]} 5. c3 {[%emt 0:00:18]} c5 {[%emt 0:01:19]} 6. Bxf6 {[%emt 0:05:50]} exf6 {[%emt 0:02:28]} 7. dxc5 {[%emt 0:01:22]} Qc7 {[%emt 0:03:30]} 8. Nb3 {[%emt 0:00:46]} b6 {[%emt 0:04:12]} 9. Qd6 {[%emt 0:01:47]} Qb7 {[%emt 0:03:54]} 10. cxb6 {[%emt 0:02:39]} axb6 {[%emt 0:02:38]} 11. e3 {[%emt 0:00:13]} Na6 {[%emt 0:07:24]} 12. Bc4 {[%emt 0:01:32]} Qc6 {[%emt 0:01:32]} 13. Qd3 {[%emt 0:04:03]} Qc7 {[%emt 0:02:09]} ({Black should try} 13... Nc7) 14. O-O $16 {[%emt 0:04:22]} Bb7 {[%emt 0:02:04]} 15. Rfd1 {[%emt 0:01:45]} d5 {[%emt 0:13:18]} 16. Bxd5 {[%emt 0:08:38]} Rfd8 {[%emt 0:16:30]} 17. Qb5 {[%emt 0:01:10]} Rxd5 {[%emt 0:03:13]} 18. Rxd5 {[%emt 0:00:14]} Bc6 {[%emt 0:00:09]} 19. Qd3 {[%emt 0:00:37]} Qb7 {[%emt 0:00:33]} 20. Rd8+ {[%emt 0:03:21]} Bf8 {[%emt 0:00:05]} 21. Rxa8 {[%emt 0:00:07]} Qxa8 {[%emt 0:00:04]} 22. Nbd4 {[%emt 0:00:22]} Nc5 {[%emt 0:00:21]} 23. Qe2 {[%emt 0:02:08]} Be4 {[%emt 0:00:23]} 24. Ne1 {[%emt 0:02:19]} Bd6 {[%emt 0:00:57]} 25. f3 {[%emt 0:03:17]} Bd5 {[%emt 0:00:34]} 26. c4 {[%emt 0:02:38]} Bb7 {[%emt 0:00:15]} 27. Nb5 {[%emt 0:02:43]} Bf8 {[%emt 0:00:47]} 28. a3 {[%emt 0:04:11]} Qe8 {[%emt 0:01:09]} 29. b4 {[%emt 0:00:51]} Ne6 {[%emt 0:02:04]} 30. Qd3 {[%emt 0:00:20]} Qb8 {[%emt 0:01:21]} 31. Rd1 {[%emt 0:04:28]} Qe5 {[%emt 0:00:58]} 32. Qc3 {[%emt 0:03:03]} Qg5 {[%emt 0:01:23]} 33. Nd6 {[%emt 0:01:08]} Ba8 {[%emt 0:00:49]} 34. Nc8 {[%emt 0:09:23]} Bh6 {[%emt 0:01:36]} 35. Rd3 {[%emt 0:02:37]} f5 {[%emt 0:05:21]} 36. Nxb6 {[%emt 0:02:39]} Bb7 {[%emt 0:00:09]} 37. Qe5 {[%emt 0:03:54]} Qh4 {[%emt 0:00:47]} 38. g3 {[%emt 0:01:27]} Qh3 {[%emt 0:00:39]} 39. Qb8+ {[%emt 0:01:01]} Kg7 {[%emt 0:00:05]} 40. Qxb7 {[%emt 0:00:00]} f4 {[%emt 0:00:00]} 41. exf4 Nxf4 {[%emt 0:00:12]} 42. Qe4 {[%emt 0:06:29]} Nxd3 {[%emt 0:00:19]} 43. Nxd3 {[%emt 0:00:04]} 1-0

[Event "Romanian Championship 2024"]
[Site "Eforie Nord"]
[Date "2024.03.01"]
[Round "8.17"]
[White "Costescu, Mihnea-Constantin"]
[Black "Nastase, Robert-Paul"]
[Result "0-1"]
[ECO "A85"]
[WhiteElo "1944"]
[BlackElo "2226"]
[Annotator "RC"]
[PlyCount "56"]
[EventDate "2024.02.24"]
[EventType "swiss"]
[EventCountry "ROU"]
[SourceTitle "playchess.com"]
[Source "ChessBase"]
[SourceQuality "1"]
[TimeControl "40/5400+30:900+30"]

1. Nf3 {[%emt 0:00:24]} d5 {[%emt 0:00:04]} 2. d4 {[%emt 0:00:35]} e6 {[%emt 0:00:05]} 3. c4 {[%emt 0:00:04]} c6 {[%emt 0:00:01]} 4. e3 {[%emt 0:00:15]} f5 {[%emt 0:00:15]} 5. Nc3 {[%emt 0:00:16]} Nf6 {[%emt 0:00:11]} 6. Bd3 {[%emt 0:02:16]} Bd6 {[%emt 0:00:05]} 7. Qc2 {[%emt 0:00:28]} Ne4 {[%emt 0:02:49]} 8. h4 {[%emt 0:28:05]} O-O {[%emt 0:00:39]} 9. Bd2 {[%emt 0:03:12]} h6 {[%emt 0:02:54]} 10. h5 {[%emt 0:03:09]} Nd7 {[%emt 0:02:13]} 11. Nh4 {[%emt 0:09:14]} Rf7 {[%emt 0:01:27]} 12. Ng6 {[%emt 0:02:14]} Qg5 {[%emt 0:00:46]} 13. Bf1 {[%emt 0:06:20]} Ndf6 {[%emt 0:05:50]} 14. Nf4 {[%emt 0:04:58]} Bd7 {[%emt 0:05:01]} 15. Rh3 {[%emt 0:02:30]} Re8 {[%emt 0:04:52]} 16. Nxe4 {[%emt 0:04:01]} Nxe4 {[%emt 0:00:14]} 17. f3 {[%emt 0:02:12]} Nxd2 {[%emt 0:00:20]} 18. Qxd2 {[%emt 0:00:15]} e5 {[%emt 0:00:03]} 19. dxe5 {[%emt 0:04:04]} Bxe5 {[%emt 0:00:07]} 20. O-O-O {[%emt 0:01:23]} d4 {[%emt 0:00:07]} 21. Qc2 {[%emt 0:02:48]} dxe3 {[%emt 0:01:12]} 22. Ne2 {[%emt 0:00:35]} f4 {[%emt 0:00:34]} 23. Rh1 {[%emt 0:00:21]} Bf5 {[%emt 0:03:01]} 24. Qb3 {[%emt 0:00:26]} Bh7 {[%emt 0:04:54]} 25. Ng1 {[%emt 0:02:21]} Rd8 {[%emt 0:01:48]} 26. Bd3 {[%emt 0:04:44]} Rxd3 {[%emt 0:01:53]} 27. Rxd3 {[%emt 0:00:09]} Bxd3 {[%emt 0:00:03]} 28. Qxd3 {[%emt 0:00:05]} Qxg2 {[%emt 0:00:19]} 0-1

[Event "Romanian Championship 2024"]
[Site "Eforie Nord"]
[Date "2024.03.01"]
[Round "8.18"]
[White "Visanescu, Dragos-Nicholas"]
[Black "Coicev, Matei-Andrei"]
[Result "0-1"]
[ECO "B13"]
[WhiteElo "1759"]
[BlackElo "2122"]
[Annotator "RC"]
[PlyCount "104"]
[EventDate "2024.02.24"]
[EventType "swiss"]
[EventCountry "ROU"]
[SourceTitle "playchess.com"]
[Source "ChessBase"]
[SourceQuality "1"]
[TimeControl "40/5400+30:900+30"]

1. e4 {[%emt 0:00:02]} c6 {[%emt 0:00:13]} 2. d4 {[%emt 0:00:07]} d5 {[%emt 0:00:05]} 3. exd5 {[%emt 0:00:04]} cxd5 {[%emt 0:00:06]} 4. Bd3 {[%emt 0:00:05]} Nc6 {[%emt 0:00:05]} 5. c3 {[%emt 0:00:05]} Nf6 {[%emt 0:00:11]} 6. Bf4 {[%emt 0:00:06]} Bg4 {[%emt 0:00:08]} 7. Qb3 {[%emt 0:00:06]} e5 {[%emt 0:00:10]} 8. h3 {[%emt 0:01:20]} Na5 {[%emt 0:00:10]} 9. Qc2 {[%emt 0:00:46]} exf4 {[%emt 0:00:13]} 10. hxg4 {[%emt 0:00:16]} Nxg4 {[%emt 0:00:33]} 11. Nf3 {[%emt 0:00:56]} g6 {[%emt 0:01:24]} 12. Rh4 {[%emt 0:23:14]} h5 {[%emt 0:06:21]} 13. Nbd2 {[%emt 0:02:25]} Bg7 {[%emt 0:01:25]} 14. Kf1 {[%emt 0:20:24]} O-O {[%emt 0:04:12]} 15. Re1 {[%emt 0:00:29]} Re8 {[%emt 0:02:42]} 16. Rxe8+ {[%emt 0:00:50]} Qxe8 {[%emt 0:00:01]} 17. Nh2 {[%emt 0:01:29]} Bf6 {[%emt 0:06:18]} 18. Rh3 {[%emt 0:03:22]} Kg7 {[%emt 0:06:13]} 19. Be2 {[%emt 0:04:26]} Qe6 {[%emt 0:03:12]} 20. Qd1 {[%emt 0:01:24]} Nxh2+ {[%emt 0:01:18]} 21. Rxh2 {[%emt 0:00:18]} Re8 {[%emt 0:02:05]} 22. Nf3 {[%emt 0:02:20]} Nc6 {[%emt 0:09:08]} 23. Bd3 {[%emt 0:02:24]} a6 {[%emt 0:03:42]} 24. Qd2 {[%emt 0:03:06]} Qd6 {[%emt 0:01:12]} 25. Rh3 {[%emt 0:09:18]} Nd8 {[%emt 0:02:37]} 26. Bc2 {[%emt 0:10:11]} Ne6 {[%emt 0:01:41]} 27. Bb3 {[%emt 0:07:33]} b5 {[%emt 0:04:48]} 28. a3 {[%emt 0:02:38]} a5 {[%emt 0:01:28]} 29. Ne5 {[%emt 0:03:16]} Ng5 {[%emt 0:01:51]} 30. Rd3 {[%emt 0:00:08]} Ne6 {[%emt 0:03:45]} 31. Kg1 {[%emt 0:01:08]} Nc7 {[%emt 0:06:55]} 32. Qxf4 {[%emt 0:01:02]} Bxe5 {[%emt 0:00:16]} 33. dxe5 {[%emt 0:00:10]} Rxe5 {[%emt 0:02:02]} 34. Re3 {[%emt 0:01:16]} f6 {[%emt 0:00:21]} 35. g3 {[%emt 0:00:24]} Qe7 {[%emt 0:02:32]} 36. Rxe5 {[%emt 0:00:34]} Qxe5 {[%emt 0:03:04]} 37. Qd2 {[%emt 0:00:06]} h4 {[%emt 0:10:54]} 38. gxh4 {[%emt 0:01:09]} Qf5 {[%emt 0:00:20]} 39. Qe2 {[%emt 0:00:26]} Ne6 {[%emt 0:02:21]} 40. Bc2 {[%emt 0:00:00]} Qh3 {[%emt 0:00:00]} 41. Qe3 {[%emt 0:01:33]} Qg4+ {[%emt 0:01:31]} 42. Qg3 {[%emt 0:00:22]} Qh5 {[%emt 0:00:45]} 43. f4 {[%emt 0:02:40]} f5 {[%emt 0:00:30]} 44. Qf2 {[%emt 0:02:32]} Qg4+ {[%emt 0:00:42]} 45. Kh2 {[%emt 0:03:20]} Nxf4 {[%emt 0:01:04]} 46. Qg3 {[%emt 0:07:36]} Qe2+ {[%emt 0:00:16]} 47. Kg1 {[%emt 0:00:31]} Qxc2 {[%emt 0:00:36]} 48. Qxf4 {[%emt 0:00:05]} Qb1+ {[%emt 0:00:06]} 49. Kh2 {[%emt 0:00:21]} Qxb2+ {[%emt 0:00:05]} 50. Kg1 {[%emt 0:00:13]} Qxc3 {[%emt 0:00:13]} 51. Qg5 {[%emt 0:01:19]} Qd4+ {[%emt 0:00:24]} 52. Kh1 {[%emt 0:00:20]} Qf6 {[%emt 0:00:17]} 0-1

[Event "Romanian Championship 2024"]
[Site "Eforie Nord"]
[Date "2024.03.01"]
[Round "8.19"]
[White "Craciun, Sasha-Matei"]
[Black "Mintau, Andrei-Catalin"]
[Result "1-0"]
[ECO "B38"]
[WhiteElo "2080"]
[BlackElo "2039"]
[Annotator "NA RC"]
[PlyCount "81"]
[EventDate "2024.02.24"]
[EventType "swiss"]
[EventCountry "ROU"]
[SourceTitle "playchess.com"]
[Source "ChessBase"]
[SourceQuality "1"]
[TimeControl "40/5400+30:900+30"]

1. e4 {[%emt 0:00:02]} c5 {[%emt 0:00:07]} 2. Nf3 {[%emt 0:00:04]} g6 {[%emt 0:00:03]} 3. d4 {[%emt 0:00:04]} cxd4 {[%emt 0:00:03]} 4. Nxd4 {[%emt 0:00:04]} Bg7 {[%emt 0:00:13]} 5. c4 {[%emt 0:00:24]} Nc6 {[%emt 0:00:03]} 6. Be3 {[%emt 0:00:03]} d6 {[%emt 0:00:07]} 7. Nc3 {[%emt 0:00:08]} Nf6 {[%emt 0:00:03]} 8. Be2 {[%emt 0:00:51]} O-O {[%emt 0:00:54]} 9. f3 {[%emt 0:00:13]} Bd7 {[%emt 0:00:05]} 10. Qd2 {[%emt 0:00:05]} Nxd4 {[%emt 0:00:23]} 11. Bxd4 {[%emt 0:00:04]} Bc6 {[%emt 0:00:04]} 12. O-O-O {[%emt 0:01:40]} a6 {[%emt 0:17:41]} 13. Kb1 {[%emt 0:09:01]} Rb8 $16 {[%emt 0:19:00]} 14. h4 {[%emt 0:04:13]} b5 {[%emt 0:16:38]} 15. h5 {[%emt 0:06:36]} e5 {[%emt 0:02:46]} 16. Ba7 {[%emt 0:13:12]} Rb7 {[%emt 0:17:54]} 17. Be3 {[%emt 0:09:32]} b4 {[%emt 0:00:13]} 18. Nd5 {[%emt 0:00:46]} Bxd5 {[%emt 0:08:49]} 19. cxd5 {[%emt 0:00:06]} Nxh5 {[%emt 0:00:27]} 20. Bxa6 {[%emt 0:00:11]} Rb8 {[%emt 0:00:14]} 21. Rc1 {[%emt 0:03:57]} Qd7 {[%emt 0:06:27]} 22. Ka1 {[%emt 0:03:01]} b3 {[%emt 0:05:19]} 23. a3 {[%emt 0:01:52]} f5 {[%emt 0:00:30]} 24. Bd3 {[%emt 0:06:44]} fxe4 {[%emt 0:01:16]} 25. Bxe4 {[%emt 0:03:50]} Ng3 {[%emt 0:00:11]} 26. Rh4 {[%emt 0:01:45]} Nf5 {[%emt 0:01:24]} 27. Rh3 {[%emt 0:00:57]} Rfc8 {[%emt 0:01:50]} 28. Rc6 {[%emt 0:03:11]} Qf7 {[%emt 0:01:06]} 29. Bf2 {[%emt 0:03:52]} Nd4 {[%emt 0:00:31]} 30. Rxc8+ {[%emt 0:02:22]} Rxc8 {[%emt 0:00:02]} 31. Rh1 {[%emt 0:01:47]} Qc7 {[%emt 0:00:31]} 32. Kb1 {[%emt 0:01:07]} Qc4 {[%emt 0:01:03]} 33. Rc1 {[%emt 0:01:56]} Nc2 {[%emt 0:00:25]} 34. Bxc2 {[%emt 0:00:16]} Bh6 {[%emt 0:00:29]} 35. Qxh6 {[%emt 0:00:57]} bxc2+ {[%emt 0:01:09]} 36. Ka1 {[%emt 0:23:37]} Qxd5 {[%emt 0:00:00]} 37. Qe3 {[%emt 0:00:00]} Qc4 {[%emt 0:00:22]} 38. Be1 {[%emt 0:01:00]} d5 {[%emt 0:00:13]} 39. Qc3 {[%emt 0:00:00]} Qa6 {[%emt 0:00:36]} 40. Qxe5 {[%emt 0:00:00]} Qf1 {[%emt 0:00:00]} 41. Qe6+ {[%emt 0:00:00]} 1-0

[Event "Romanian Championship 2024"]
[Site "Eforie Nord"]
[Date "2024.03.01"]
[Round "8.20"]
[White "Ciocani, Iosif"]
[Black "Armenciu, Bogdan-Ovidiu"]
[Result "1/2-1/2"]
[ECO "B09"]
[WhiteElo "2063"]
[BlackElo "1936"]
[Annotator "NA RC"]
[PlyCount "101"]
[EventDate "2024.02.24"]
[EventType "swiss"]
[EventCountry "ROU"]
[SourceTitle "playchess.com"]
[Source "ChessBase"]
[SourceQuality "1"]
[TimeControl "40/5400+30:900+30"]

1. e4 {[%emt 0:00:44]} d6 {[%emt 0:00:33]} 2. d4 {[%emt 0:00:07]} Nf6 {[%emt 0:00:06]} 3. Nc3 {[%emt 0:00:07]} g6 {[%emt 0:00:05]} 4. f4 {[%emt 0:00:11]} Bg7 {[%emt 0:00:21]} 5. Nf3 {[%emt 0:00:10]} c5 {[%emt 0:00:23]} 6. Bb5+ {[%emt 0:00:21]} Bd7 {[%emt 0:00:34]} 7. e5 {[%emt 0:00:14]} Ng4 {[%emt 0:00:57]} 8. Bxd7+ {[%emt 0:00:25]} Qxd7 {[%emt 0:00:19]} 9. h3 {[%emt 0:00:17]} cxd4 {[%emt 0:00:52]} 10. Qxd4 {[%emt 1:32:54]} Nc6 {[%emt 0:00:31]} 11. Qe4 {[%emt 0:00:00]} Nh6 {[%emt 0:07:33]} 12. Be3 {[%emt 0:00:00]} dxe5 {[%emt 0:14:20]} 13. fxe5 $14 {[%emt 0:00:00]} Nf5 {[%emt 0:09:17]} 14. Bf4 {[%emt 0:00:00]} e6 {[%emt 0:17:47]} 15. g4 {[%emt 0:00:00]} Nfe7 {[%emt 0:03:32]} 16. Nb5 {[%emt 0:00:00]} O-O {[%emt 0:06:50]} 17. Rd1 {[%emt 0:00:00]} Qc8 {[%emt 0:01:09]} 18. c4 {[%emt 0:00:00]} a6 {[%emt 0:02:05]} 19. Nd6 {[%emt 0:00:00]} Qc7 {[%emt 0:00:05]} 20. O-O {[%emt 0:00:00]} b5 {[%emt 0:06:08]} 21. b3 {[%emt 0:00:00]} bxc4 {[%emt 0:01:23]} 22. bxc4 {[%emt 0:00:00]} Rab8 {[%emt 0:01:38]} 23. Rb1 {[%emt 0:00:00]} Qa5 {[%emt 0:01:11]} 24. Rxb8 {[%emt 0:00:00]} Rxb8 {[%emt 0:02:12]} 25. Ng5 {[%emt 0:00:00]} Nxe5 {[%emt 0:12:45]} 26. Ndxf7 {[%emt 0:00:00]} Nxf7 {[%emt 0:01:15]} 27. Qxe6 {[%emt 0:00:00]} Qb6+ {[%emt 0:00:24]} 28. Qxb6 {[%emt 0:01:53]} Rxb6 {[%emt 0:00:04]} 29. Nxf7 {[%emt 0:00:05]} Kxf7 {[%emt 0:00:57]} 30. Bd6+ {[%emt 0:00:04]} Ke6 {[%emt 0:03:29]} 31. c5 {[%emt 0:00:10]} Rxd6 {[%emt 0:00:40]} 32. cxd6 {[%emt 0:00:05]} Kxd6 {[%emt 0:00:53]} 33. Rf7 {[%emt 0:00:04]} Bd4+ {[%emt 0:00:11]} 34. Kg2 {[%emt 0:00:13]} h5 {[%emt 0:04:10]} 35. gxh5 {[%emt 0:00:11]} gxh5 {[%emt 0:00:01]} 36. Kf3 {[%emt 0:00:26]} Nd5 {[%emt 0:01:00]} 37. Ke4 {[%emt 0:00:18]} Bb2 {[%emt 0:01:08]} 38. Rf5 {[%emt 0:01:38]} Nf6+ {[%emt 0:00:44]} 39. Kf4 {[%emt 0:00:21]} Bc3 {[%emt 0:01:50]} 40. Kg5 {[%emt 0:00:00]} Ne4+ {[%emt 0:00:00]} 41. Kg6 {[%emt 0:00:39]} a5 {[%emt 0:13:30]} 42. Rxh5 {[%emt 0:00:15]} a4 {[%emt 0:00:02]} 43. Rb5 {[%emt 0:01:19]} a3 {[%emt 0:00:17]} 44. h4 {[%emt 0:00:53]} Bb2 {[%emt 0:00:40]} 45. h5 {[%emt 0:06:32]} Nc3 {[%emt 0:00:03]} 46. Rb8 {[%emt 0:00:44]} Nxa2 {[%emt 0:00:08]} 47. h6 {[%emt 0:00:33]} Nc1 {[%emt 0:00:47]} 48. h7 {[%emt 0:00:51]} Kc7 {[%emt 0:00:50]} 49. Rb4 {[%emt 0:02:59]} Kd6 {[%emt 0:01:52]} 50. Rb8 {[%emt 0:01:41]} Kc7 {[%emt 0:00:34]} 51. Rb4 {[%emt 0:00:32]} 1/2-1/2

[Event "Romanian Championship 2024"]
[Site "Eforie Nord"]
[Date "2024.03.01"]
[Round "8.21"]
[White "Stanica, Andrei"]
[Black "Gales, Randi-Ioan"]
[Result "1-0"]
[ECO "B22"]
[WhiteElo "1720"]
[BlackElo "2062"]
[Annotator "NA RC"]
[PlyCount "121"]
[EventDate "2024.02.24"]
[EventType "swiss"]
[EventCountry "ROU"]
[SourceTitle "playchess.com"]
[Source "ChessBase"]
[SourceQuality "1"]
[TimeControl "40/5400+30:900+30"]

1. e4 {[%emt 0:00:01]} c5 {[%emt 0:00:07]} 2. c3 {[%emt 0:00:06]} Nf6 {[%emt 0:00:09]} 3. e5 {[%emt 0:00:03]} Nd5 {[%emt 0:00:10]} 4. Nf3 {[%emt 0:00:05]} d6 {[%emt 0:00:08]} 5. d4 {[%emt 0:01:08]} cxd4 {[%emt 0:00:05]} 6. cxd4 {[%emt 0:00:06]} Nc6 {[%emt 0:00:18]} 7. Bc4 {[%emt 0:00:13]} Nb6 {[%emt 0:00:10]} 8. Bb3 {[%emt 0:00:28]} dxe5 {[%emt 0:00:29]} 9. dxe5 {[%emt 0:00:29]} Qxd1+ {[%emt 0:03:13]} 10. Kxd1 {[%emt 0:01:26]} Bg4 {[%emt 0:01:13]} 11. Bf4 {[%emt 0:02:33]} Nd4 {[%emt 0:18:30]} 12. Nbd2 {[%emt 0:00:57]} e6 {[%emt 0:02:11]} 13. Ke1 {[%emt 0:09:54]} Bxf3 {[%emt 0:00:43]} 14. Nxf3 {[%emt 0:01:35]} Bb4+ {[%emt 0:03:22]} 15. Bd2 {[%emt 0:02:07]} Nxb3 {[%emt 0:01:09]} 16. axb3 {[%emt 0:00:55]} Bxd2+ $11 {[%emt 0:00:10]} 17. Nxd2 {[%emt 0:00:23]} Ke7 {[%emt 0:03:26]} 18. Ke2 {[%emt 0:03:38]} Nd5 {[%emt 0:05:29]} 19. g3 {[%emt 0:00:25]} Rhd8 {[%emt 0:03:10]} 20. Nc4 {[%emt 0:02:17]} f6 {[%emt 0:01:01]} 21. Rhd1 {[%emt 0:01:27]} fxe5 {[%emt 0:10:20]} 22. Nxe5 {[%emt 0:00:13]} Rd6 {[%emt 0:01:49]} 23. f4 {[%emt 0:04:01]} a6 {[%emt 0:05:08]} 24. Nc4 {[%emt 0:01:30]} Rc6 {[%emt 0:00:48]} 25. Rd2 {[%emt 0:00:21]} Rac8 {[%emt 0:03:34]} 26. Rad1 {[%emt 0:01:07]} b5 {[%emt 0:04:15]} 27. Ne3 {[%emt 0:02:39]} Nxe3 {[%emt 0:04:21]} 28. Kxe3 {[%emt 0:01:21]} Rc2 {[%emt 0:01:23]} 29. Rd7+ {[%emt 0:00:27]} Kf6 {[%emt 0:00:22]} 30. R1d2 {[%emt 0:01:25]} R8c7 {[%emt 0:04:45]} 31. Rd8 {[%emt 0:04:30]} Rxd2 {[%emt 0:03:12]} 32. Kxd2 {[%emt 0:00:34]} Rc6 {[%emt 0:02:22]} 33. Rf8+ {[%emt 0:01:22]} Ke7 {[%emt 0:00:42]} 34. Rg8 {[%emt 0:00:05]} Kf7 {[%emt 0:00:15]} 35. Rd8 {[%emt 0:00:07]} h6 {[%emt 0:01:27]} 36. h4 {[%emt 0:01:06]} Rc5 {[%emt 0:02:27]} 37. Rd6 {[%emt 0:02:16]} a5 {[%emt 0:00:12]} 38. Rd7+ {[%emt 0:17:35]} Kf6 {[%emt 0:00:50]} 39. g4 {[%emt 0:03:15]} h5 {[%emt 0:13:25]} 40. g5+ {[%emt 0:00:00]} Kf5 {[%emt 0:00:00]} 41. Rxg7 {[%emt 0:02:36]} Kxf4 {[%emt 0:01:48]} 42. Rf7+ {[%emt 0:01:37]} Kg4 {[%emt 0:00:11]} 43. g6 {[%emt 0:01:21]} Kxh4 {[%emt 0:00:13]} 44. Rf1 {[%emt 0:06:03]} Rd5+ {[%emt 0:07:06]} 45. Ke3 {[%emt 0:00:10]} Re5+ {[%emt 0:00:08]} 46. Kd4 {[%emt 0:00:05]} Rd5+ {[%emt 0:00:22]} 47. Ke4 {[%emt 0:00:04]} Kh3 {[%emt 0:02:43]} 48. Rg1 {[%emt 0:00:09]} Kh2 {[%emt 0:00:17]} 49. g7 {[%emt 0:00:06]} Kxg1 {[%emt 0:00:20]} 50. g8=Q+ {[%emt 0:00:05]} Kf1 {[%emt 0:03:21]} 51. Qxe6 {[%emt 0:00:04]} Rd2 {[%emt 0:00:29]} 52. Qh3+ {[%emt 0:00:09]} Ke1 {[%emt 0:00:32]} 53. Qh1+ {[%emt 0:00:06]} Kf2 {[%emt 0:00:18]} 54. Qxh5 {[%emt 0:00:13]} a4 {[%emt 0:00:36]} 55. Qxb5 {[%emt 0:00:21]} axb3 {[%emt 0:00:59]} 56. Qxb3 {[%emt 0:00:07]} Re2+ {[%emt 0:00:04]} 57. Kf4 {[%emt 0:00:06]} Kg1 {[%emt 0:00:42]} 58. Qg3+ {[%emt 0:00:08]} Kh1 {[%emt 0:00:46]} 59. Qf3+ {[%emt 0:00:05]} Rg2 {[%emt 0:00:04]} 60. b4 {[%emt 0:00:04]} Kh2 {[%emt 0:00:24]} 61. Qxg2+ {[%emt 0:00:14]} 1-0

[Event "Romanian Championship 2024"]
[Site "Eforie Nord"]
[Date "2024.03.01"]
[Round "8.22"]
[White "Negrean, Andrei"]
[Black "Constantinoiu, Alexandru Ioan"]
[Result "1-0"]
[ECO "D13"]
[WhiteElo "1990"]
[BlackElo "1754"]
[Annotator "NA RC"]
[PlyCount "107"]
[EventDate "2024.02.24"]
[EventType "swiss"]
[EventCountry "ROU"]
[SourceTitle "playchess.com"]
[Source "ChessBase"]
[SourceQuality "1"]
[TimeControl "40/5400+30:900+30"]

1. Nf3 {[%emt 0:00:06]} d5 {[%emt 0:00:17]} 2. d4 {[%emt 0:00:12]} Nf6 {[%emt 0:00:19]} 3. c4 {[%emt 0:00:08]} c6 {[%emt 0:00:09]} 4. cxd5 {[%emt 0:00:19]} cxd5 {[%emt 0:00:15]} 5. Nc3 {[%emt 0:00:13]} e6 {[%emt 0:00:12]} 6. Bf4 {[%emt 0:01:08]} a6 {[%emt 0:00:08]} 7. Rc1 {[%emt 0:04:02]} b5 {[%emt 0:02:30]} 8. e3 {[%emt 0:03:11]} Bb7 {[%emt 0:10:40]} 9. Bd3 {[%emt 0:03:16]} Bd6 {[%emt 0:02:07]} 10. Ne5 {[%emt 0:08:04]} O-O {[%emt 0:01:04]} 11. O-O {[%emt 0:00:37]} Qe7 {[%emt 0:05:01]} 12. Bg5 {[%emt 0:12:33]} h6 {[%emt 0:07:14]} 13. Bh4 {[%emt 0:02:28]} Qd8 {[%emt 0:02:58]} 14. Bb1 {[%emt 0:05:33]} Re8 {[%emt 0:24:03]} 15. Qc2 {[%emt 0:10:10]} Be7 {[%emt 0:07:58]} 16. Bxf6 {[%emt 0:09:32]} Bxf6 {[%emt 0:00:11]} 17. Qh7+ {[%emt 0:01:16]} Kf8 {[%emt 0:00:16]} 18. e4 {[%emt 0:01:26]} Bxe5 {[%emt 0:14:03]} 19. dxe5 {[%emt 0:00:18]} d4 {[%emt 0:03:19]} 20. Ne2 {[%emt 0:09:08]} Nd7 {[%emt 0:05:09]} 21. Ng3 {[%emt 0:09:25]} Nxe5 {[%emt 0:05:42]} 22. Nh5 {[%emt 0:03:41]} Ke7 {[%emt 0:02:30]} 23. Qxg7 {[%emt 0:01:14]} Qd6 {[%emt 0:00:29]} 24. f4 {[%emt 0:02:45]} Nc4 {[%emt 0:00:15]} 25. f5 {[%emt 0:02:00]} exf5 {[%emt 0:02:03]} 26. Rxf5 {[%emt 0:02:38]} Qg6 {[%emt 0:01:39]} 27. Qxd4 {[%emt 0:02:40]} Rg8 {[%emt 0:01:17]} 28. Nf4 {[%emt 0:00:46]} Qd6 {[%emt 0:01:06]} 29. Rxc4 {[%emt 0:00:30]} bxc4 {[%emt 0:01:17]} 30. Rxf7+ {[%emt 0:00:05]} Kxf7 {[%emt 0:00:09]} 31. Qxd6 {[%emt 0:00:03]} Rad8 {[%emt 0:00:29]} 32. Qc7+ {[%emt 0:00:08]} Ke8 {[%emt 0:00:12]} 33. Qxb7 {[%emt 0:00:07]} Rd1+ {[%emt 0:00:04]} 34. Kf2 {[%emt 0:00:03]} Rxb1 {[%emt 0:00:04]} 35. Qc8+ {[%emt 0:00:22]} Kf7 {[%emt 0:00:05]} 36. Qe6+ {[%emt 0:00:26]} Kf8 {[%emt 0:00:25]} 37. Qxh6+ {[%emt 0:00:29]} Kf7 {[%emt 0:00:17]} 38. Qe6+ {[%emt 0:01:01]} Kf8 {[%emt 0:00:13]} 39. Qc8+ {[%emt 0:00:44]} Kg7 {[%emt 0:00:15]} 40. Qc7+ {[%emt 0:00:00]} Kh8 {[%emt 0:00:00]} 41. Qe5+ {[%emt 0:00:57]} Kh7 {[%emt 0:00:27]} 42. Qh5+ {[%emt 0:00:07]} Kg7 {[%emt 0:00:05]} 43. Qg6+ {[%emt 0:00:05]} Kf8 {[%emt 0:00:04]} 44. Ne6+ {[%emt 0:00:03]} Ke7 {[%emt 0:00:05]} 45. Qxg8 {[%emt 0:00:07]} Rxb2+ {[%emt 0:00:03]} 46. Kf3 {[%emt 0:00:06]} c3 {[%emt 0:00:06]} 47. Nf4 {[%emt 0:00:26]} Rd2 {[%emt 0:00:19]} 48. Qg7+ {[%emt 0:00:06]} Ke8 {[%emt 0:00:11]} 49. Qxc3 {[%emt 0:00:07]} Rxa2 {[%emt 0:00:15]} 50. Qc7 {[%emt 0:00:06]} Ra3+ {[%emt 0:00:09]} 51. Kg4 {[%emt 0:26:03]} Ra2 {[%emt 0:01:15]} 52. Kf5 {[%emt 0:00:00]} Rf2 {[%emt 0:00:09]} 53. Ke6 {[%emt 0:00:00]} Rxf4 {[%emt 0:00:35]} 54. Qc8# {[%emt 0:00:00]} 1-0